fUST/lending_fUST_20250301
["ID","MTS","AMOUNT","RATE_DAILY","PERIOD"]
[354928334,1740827448286,-500.0,0.00032849,2]
[354928335,1740827448297,-519.48016072,0.00032849,2]
[354928336,1740827448307,-1068.66,0.00032849,2]
[354928337,1740827448318,-500.0,0.00032849,2]
[354928338,1740827448327,-151.0,0.00032849,7]
[354928339,1740827448337,-213.534602,0.00032849,7]
[354928340,1740827448347,-213.534602,0.00032849,7]
[354928341,1740827448359,-422.586056,0.00032849,7]
[354928342,1740827448372,-402.074322,0.00032849,7]
[354928343,1740827448383,-500.0,0.00032849,2]
[354928344,1740827448393,-402.074322,0.00032849,7]
[354928345,1740827448403,-422.586056,0.00032849,7]
[354928346,1740827448413,-500.0,0.00032849,2]
[354928347,1740827448423,-651.46,0.00032849,2]
[354928348,1740827448502,-500.0,0.00032849,2]
[354928349,1740827448513,-500.0,0.00032849,2]
[354928350,1740827448523,-500.0,0.00032849,2]
[354928351,1740827448533,-224.546698,0.00032849,7]
[354928352,1740827448543,-224.546698,0.00032849,7]
[354928353,1740827448553,-1267.58,0.00032849,2]
[354928354,1740827448563,-2663.691144,0.00032849,7]
[354928355,1740827448573,-2663.691144,0.00032849,7]
[354928356,1740827448583,-500.0,0.00032849,2]
[354928357,1740827448593,-1670.53,0.00032849,2]
[354928358,1740827448603,-500.0,0.00032849,2]
[354928359,1740827448615,-177.686167,0.00032849,7]
[354928360,1740827448625,-177.686167,0.00032849,7]
[354928361,1740827448635,-660.69,0.00032849,2]
[354928362,1740827448646,-533.32,0.00032849,2]
[354928363,1740827448657,-151.0,0.00032849,7]
[354928364,1740827448667,-1357.84,0.00032849,2]
[354928365,1740827448678,-500.0,0.00032849,2]
[354928366,1740827448688,-151.0,0.00032849,7]
[354928367,1740827448698,-500.0,0.00032849,2]
[354928368,1740827448710,-500.0,0.00032849,2]
[354928369,1740827448720,-573.45,0.00032849,2]
[354928370,1740827448730,-500.0,0.00032849,2]
[354928371,1740827448740,-500.0,0.00032849,2]
[354928372,1740827448749,-1048.64,0.00032849,2]
[354928373,1740827448759,-500.0,0.00032849,2]
[354928374,1740827448769,-500.0,0.00032849,2]
[354928375,1740827448779,-500.0,0.00032849,2]
[354928376,1740827448789,-534.53,0.00032849,2]
[354928377,1740827448800,-675.417114,0.00032849,7]
[354928378,1740827448809,-1332.738602,0.00032849,7]
[354928379,1740827448820,-675.417114,0.00032849,7]
[354928380,1740827448830,-1332.738602,0.00032849,7]
[354928381,1740827448839,-151.0,0.00032849,7]
[354928382,1740827448849,-2224.43,0.00032849,2]
[354928383,1740827448861,-151.0,0.00032849,7]
[354928384,1740827448870,-1401.54,0.00032849,2]
[354928385,1740827448880,-1302.16,0.00032849,2]
[354928386,1740827448890,-500.0,0.00032873,5]
[354928387,1740827448901,-500.0,0.00032873,5]
[354928388,1740827448911,-151.0,0.00032876,7]
[354928389,1740827448920,-500.0,0.00032876,2]
[354928390,1740827448930,-500.0,0.00032876,2]
[354928391,1740827448940,-500.0,0.00032876,2]
[354928392,1740827448950,-536.05514205,0.00032876,2]
[354928393,1740827448959,-248.32078875,0.00032876,2]
[354928394,1740827448969,-623.5975962,0.00032876,2]
[354928395,1740827448978,-151.0,0.00032876,7]
[354928396,1740827448988,-151.0,0.00032876,7]
[354928397,1740827448997,-151.0,0.00032876,7]
[354928398,1740827449007,-500.0,0.00032876,2]
[354928399,1740827449017,-500.0,0.00032876,2]
[354928400,1740827449027,-500.0,0.00032876,2]
[354928401,1740827449038,-500.0,0.00032876,2]
[354928402,1740827449047,-629.9524067,0.00032876,2]
[354928403,1740827449057,-500.0,0.00032876,2]
[354928404,1740827449067,-585.92,0.00032876,2]
[354928405,1740827449078,-500.0,0.00032876,2]
[354928406,1740827449087,-500.0,0.00032876,2]
[354928407,1740827449097,-500.0,0.00032876,2]
[354928408,1740827449107,-806.64,0.00032876,2]
[354928409,1740827449118,-500.0,0.00032876,2]
[354928410,1740827449129,-500.0,0.00032876,2]
[354928411,1740827449140,-500.0,0.00032876,2]
[354928412,1740827449150,-500.0,0.00032876,2]
[354928413,1740827449160,-240.65189253,0.00032876,2]
[354928414,1740827449171,-277.7882721,0.00032876,2]
[354928415,1740827449181,-151.0,0.00032876,7]
[354928416,1740827449192,-151.0,0.00032876,7]
[354928417,1740827449201,-331.443514,0.00032876,7]
[354928418,1740827449210,-151.0,0.00032876,7]
[354928419,1740827449220,-500.0,0.00032876,120]
[354928420,1740827449230,-500.0,0.00032876,120]
[354928421,1740827449239,-151.0,0.00032876,7]
[354928422,1740827449249,-151.0,0.00032876,7]
[354928423,1740827449258,-151.0,0.00032876,7]
[354928424,1740827449268,-151.0,0.00032876,7]
[354928425,1740827449278,-151.0,0.00032876,7]
[354928426,1740827449288,-191.967055,0.00032876,7]
[354928427,1740827449297,-191.967055,0.00032876,7]
[354928428,1740827449307,-191.967055,0.00032876,7]
[354928429,1740827449317,-191.967055,0.00032876,7]
[354928430,1740827449326,-151.0,0.00032876,7]
[354928431,1740827449338,-151.0,0.00032876,7]
[354928432,1740827449348,-151.0,0.00032876,7]
[354928433,1740827449357,-151.0,0.00032876,7]
[354928434,1740827449370,-151.0,0.00032876,7]
[354928435,1740827449380,-151.0,0.00032876,7]
[354928436,1740827449389,-1101.407184,0.00032876,7]
[354928437,1740827449400,-1101.407184,0.00032876,7]
[354928438,1740827449409,-290.357858,0.00032876,7]
[354928439,1740827449419,-151.0,0.00032876,7]
[354928440,1740827449430,-1208.503185,0.00032876,7]
[354928441,1740827449440,-1208.503185,0.00032876,7]
[354928442,1740827449450,-500.0,0.00032876,120]
[354928443,1740827449460,-500.0,0.00032876,120]
[354928444,1740827449471,-801.651305,0.00032876,7]
[354928445,1740827449480,-151.0,0.00032876,7]
[354928446,1740827449490,-151.0,0.00032876,7]
[354928447,1740827449500,-801.651305,0.00032876,7]
[354928448,1740827449510,-203.730655,0.00032876,7]
[354928449,1740827449519,-213.534602,0.00032876,7]
[354928450,1740827449529,-213.534602,0.00032876,7]
[354928451,1740827449538,-422.586056,0.00032876,7]
[354928452,1740827449547,-402.074322,0.00032876,7]
[354928453,1740827449557,-402.074322,0.00032876,7]
[354928454,1740827449567,-422.586056,0.00032876,7]
[354928455,1740827449576,-224.546698,0.00032876,7]
[354928456,1740827449586,-224.546698,0.00032876,7]
[354928457,1740827449595,-2663.691144,0.00032876,7]
[354928458,1740827449605,-2663.691144,0.00032876,7]
[354928459,1740827449617,-177.686167,0.00032876,7]
[354928460,1740827449626,-177.686167,0.00032876,7]
[354928461,1740827449636,-244.929941,0.00032876,7]
[354928462,1740827449646,-244.929941,0.00032876,7]
[354928463,1740827449655,-1111.327086,0.00032876,7]
[354928464,1740827449665,-1111.327086,0.00032876,7]
[354928465,1740827449674,-405.102935,0.00032876,7]
[354928466,1740827449683,-405.102935,0.00032876,7]
[354928467,1740827449693,-1000.0,0.00032876,120]
[354928468,1740827449704,-215.275607,0.00032876,7]
[354928469,1740827449714,-215.275607,0.00032876,7]
[354928470,1740827449725,-173.573181,0.00032877,2]
[354928471,1740827449734,-178.52538232,0.00032882,2]
[354928472,1740827449745,-1283.42,0.0003289,2]
[354928473,1740827449755,-324.53,0.000329,7]
[354928474,1740827449765,-8626.23,0.000329,30]
[354928475,1740827449775,-147571.42320726,0.000329,30]
[354928498,1740828447157,-2571.985002,0.0003072,40]
[354928499,1740828454129,-220.5070285,0.0003072,40]
[354928500,1740828454157,-126.42596264,0.00030773,5]
[354928505,1740828522070,367.777003,0.0002,120]
[354928506,1740828546165,-150.0,0.0002862,2]
[354928564,1740828635189,-153.68059,0.0003072,40]
[354928565,1740828635199,-153.68059,0.0003072,40]
[354928566,1740828635209,-370.49002358,0.00030773,5]
[354928567,1740828635218,-250.0,0.00030901,2]
[354928568,1740828635228,-1105.5922346,0.0003098,2]
[354928569,1740828635237,-400.0,0.00031041,2]
[354928570,1740828635246,-8035.0076531,0.00031042,2]
[354928571,1740828635256,-355.7160855,0.00031507,30]
[354928572,1740828635265,-711.432171,0.00031641,30]
[354928573,1740828635274,-250.0,0.000319,30]
[354928574,1740828635283,-439.48030015,0.000319,6]
[354928575,1740828635293,-2000.0,0.00032,2]
[354928576,1740828635303,-2000.0,0.000321,2]
[354928577,1740828635312,-2000.0,0.000322,2]
[354928578,1740828635322,-359.0646426,0.00032232,4]
[354928579,1740828635331,-3652.36069561,0.00032297,2]
[354928580,1740828635341,-2000.0,0.000323,2]
[354928581,1740828635351,-293.9673165,0.00032304,2]
[354928583,1740828635360,-439.48030004,0.00032348,6]
[354928585,1740828635369,-500.0,0.00032373,5]
[354928588,1740828635378,-500.0,0.00032373,5]
[354928590,1740828635388,-500.0,0.00032373,5]
[354928592,1740828635397,-500.0,0.00032373,5]
[354928594,1740828635407,-504.67857365,0.00032373,5]
[354928596,1740828635419,-500.0,0.00032393,5]
[354928598,1740828635429,-378.93304299,0.00032396,2]
[354928600,1740828635440,-500.0,0.00032396,2]
[354928602,1740828635450,-500.0,0.00032396,2]
[354928604,1740828635459,-500.0,0.00032397,2]
[354928605,1740828635468,-500.0,0.00032397,2]
[354928606,1740828635477,-1923.98,0.00032397,2]
[354928607,1740828635488,-2204.83,0.00032397,2]
[354928608,1740828635499,-500.0,0.00032397,2]
[354928609,1740828635509,-717.44,0.00032397,2]
[354928610,1740828635518,-3786.35,0.00032397,2]
[354928611,1740828635527,-622.08,0.00032397,2]
[354928612,1740828635536,-505.16,0.00032397,2]
[354928613,1740828635545,-1444.21,0.00032397,2]
[354928614,1740828635554,-500.0,0.00032397,2]
[354928615,1740828635563,-24802.57,0.00032397,2]
[354928616,1740828635573,-518.86,0.00032397,2]
[354928617,1740828635582,-3525.03,0.00032397,2]
[354928618,1740828635592,-3990.45,0.00032397,2]
[354928619,1740828635601,-6317.06,0.00032397,2]
[354928620,1740828635610,-1474.43,0.00032397,5]
[354928621,1740828635624,-2239.17,0.00032397,2]
[354928622,1740828635633,-1620.01,0.00032397,2]
[354928623,1740828635642,-8561.1,0.00032397,2]
[354928624,1740828635652,-500.0,0.00032397,2]
[354928625,1740828635661,-918.51,0.00032397,2]
[354928626,1740828635670,-1217.49,0.00032397,2]
[354928627,1740828635680,-500.0,0.00032397,2]
[354928628,1740828635690,-4254.46,0.00032397,2]
[354928629,1740828635700,-3524.65,0.00032397,2]
[354928630,1740828635709,-1269.0,0.00032397,2]
[354928631,1740828635718,-500.0,0.00032397,2]
[354928632,1740828635728,-500.0,0.00032397,2]
[354928633,1740828635737,-696.03,0.00032397,2]
[354928634,1740828635750,-1588.95,0.00032397,2]
[354928635,1740828635759,-8045.32,0.00032397,2]
[354928636,1740828635769,-297.7981165,0.00032397,2]
[354928637,1740828635778,-286.47124712,0.00032397,2]
[354928638,1740828635787,-500.0,0.00032398,2]
[354928639,1740828635796,-500.0,0.00032398,2]
[354928640,1740828635805,-500.0,0.00032398,2]
[354928641,1740828635814,-500.0,0.00032398,2]
[354928642,1740828635824,-1108.64,0.00032398,2]
[354928643,1740828635834,-494.01487762,0.00032398,2]
[354928644,1740828635843,-500.0,0.00032398,2]
[354928645,1740828635852,-500.0,0.00032398,2]
[354928646,1740828635862,-500.0,0.00032398,2]
[354928647,1740828635871,-500.0,0.00032398,2]
[354928648,1740828635880,-500.0,0.00032398,2]
[354928649,1740828635889,-500.0,0.00032398,2]
[354928650,1740828635898,-629.74,0.00032398,2]
[354928651,1740828635908,-500.0,0.00032398,2]
[354928652,1740828635918,-500.0,0.00032398,2]
[354928653,1740828635927,-500.0,0.00032398,2]
[354928654,1740828635938,-500.0,0.00032398,2]
[354928655,1740828635947,-590.80666641,0.00032398,2]
[354928656,1740828635957,-500.0,0.00032398,2]
[354928657,1740828635966,-500.0,0.00032398,2]
[354928658,1740828635976,-500.0,0.00032398,2]
[354928659,1740828635986,-500.0,0.00032398,2]
[354928660,1740828635995,-500.0,0.00032398,2]
[354928661,1740828636004,-500.0,0.00032398,2]
[354928662,1740828636014,-500.0,0.00032398,2]
[354928663,1740828636023,-919.03,0.00032398,2]
[354928664,1740828636032,-500.0,0.00032398,2]
[354928665,1740828636041,-500.0,0.00032398,2]
[354928666,1740828636050,-500.0,0.00032398,2]
[354928667,1740828636060,-500.0,0.00032398,2]
[354928668,1740828636069,-500.0,0.00032398,2]
[354928669,1740828636079,-500.0,0.00032398,2]
[354928670,1740828636089,-500.0,0.00032398,2]
[354928671,1740828636098,-500.0,0.00032398,2]
[354928672,1740828636107,-500.0,0.00032398,2]
[354928673,1740828636117,-500.0,0.00032398,2]
[354928674,1740828636126,-500.0,0.00032398,2]
[354928675,1740828636136,-500.0,0.00032398,2]
[354928676,1740828636145,-736.87,0.00032398,2]
[354928677,1740828636155,-500.0,0.00032398,2]
[354928678,1740828636164,-762.1,0.00032398,2]
[354928679,1740828636173,-500.0,0.00032398,2]
[354928680,1740828636183,-200.0,0.00032398,2]
[354928681,1740828636194,-409.11509976,0.00032398,2]
[354928682,1740828636203,-524.04,0.00032398,2]
[354928683,1740828636213,-500.0,0.00032398,2]
[354928684,1740828636222,-736.17,0.00032398,2]
[354928685,1740828636231,-500.0,0.00032398,2]
[354928686,1740828636241,-500.0,0.00032398,2]
[354928687,1740828636250,-500.0,0.00032398,2]
[354928688,1740828636260,-500.0,0.00032398,2]
[354928689,1740828636270,-500.0,0.00032398,2]
[354928690,1740828636279,-500.0,0.00032398,2]
[354928691,1740828636289,-500.0,0.00032398,2]
[354928692,1740828636298,-500.0,0.00032398,2]
[354928693,1740828636308,-701.55,0.00032398,2]
[354928694,1740828636317,-500.0,0.00032398,2]
[354928695,1740828636326,-990.2,0.00032398,2]
[354928696,1740828636335,-1611.53,0.00032398,2]
[354928697,1740828636345,-500.0,0.00032398,2]
[354928698,1740828636355,-500.0,0.00032398,2]
[354928699,1740828636364,-500.0,0.00032398,2]
[354928700,1740828636373,-500.0,0.00032398,2]
[354928701,1740828636382,-542.96,0.00032398,2]
[354928702,1740828636392,-500.0,0.00032398,2]
[354928703,1740828636402,-883.86,0.00032398,2]
[354928704,1740828636416,-500.0,0.00032398,2]
[354928705,1740828636425,-500.0,0.00032398,2]
[354928706,1740828636434,-500.0,0.00032398,2]
[354928707,1740828636445,-500.0,0.00032398,2]
[354928708,1740828636455,-503.1010957,0.00032398,2]
[354928709,1740828636464,-500.0,0.00032398,2]
[354928710,1740828636474,-898.05,0.00032398,2]
[354928711,1740828636483,-1353.65,0.00032398,2]
[354928712,1740828636494,-1696.93,0.00032398,2]
[354928713,1740828636504,-500.0,0.00032398,2]
[354928714,1740828636513,-500.0,0.00032398,2]
[354928715,1740828636523,-500.0,0.00032398,2]
[354928716,1740828636533,-500.0,0.00032398,2]
[354928717,1740828636542,-500.0,0.00032398,2]
[354928718,1740828636551,-500.0,0.00032398,2]
[354928719,1740828636561,-1647.71,0.00032398,2]
[354928720,1740828636572,-500.0,0.00032398,2]
[354928721,1740828636582,-500.85,0.00032398,2]
[354928722,1740828636592,-500.0,0.00032398,2]
[354928723,1740828636602,-500.0,0.00032398,2]
[354928724,1740828636613,-543.1,0.00032398,2]
[354928725,1740828636624,-500.0,0.00032398,2]
[354928726,1740828636635,-500.0,0.00032398,2]
[354928727,1740828636645,-500.0,0.00032398,2]
[354928728,1740828636655,-500.0,0.00032398,2]
[354928729,1740828636665,-500.0,0.00032398,2]
[354928730,1740828636675,-500.0,0.00032398,2]
[354928731,1740828636685,-1665.36,0.00032398,2]
[354928732,1740828636700,-685.49,0.00032398,2]
[354928733,1740828636710,-500.0,0.00032398,2]
[354928734,1740828636720,-500.0,0.00032398,2]
[354928735,1740828636730,-932.09,0.00032398,2]
[354928736,1740828636896,-500.0,0.00032398,2]
[354928737,1740828636907,-1244.9,0.00032398,2]
[354928738,1740828636917,-500.0,0.00032398,2]
[354928739,1740828636927,-500.0,0.00032398,2]
[354928740,1740828636936,-805.72,0.00032398,2]
[354928741,1740828636947,-500.0,0.00032398,2]
[354928742,1740828636957,-500.0,0.00032398,2]
[354928743,1740828636968,-500.0,0.00032398,2]
[354928744,1740828636977,-500.0,0.00032398,2]
[354928745,1740828636986,-500.0,0.00032398,2]
[354928746,1740828636996,-500.0,0.00032398,2]
[354928747,1740828637005,-713.53,0.00032398,2]
[354928748,1740828637015,-500.0,0.00032398,2]
[354928749,1740828637025,-500.0,0.00032398,2]
[354928750,1740828637034,-500.0,0.00032398,2]
[354928751,1740828637043,-500.0,0.00032398,2]
[354928752,1740828637053,-500.0,0.00032398,2]
[354928753,1740828637061,-500.0,0.00032398,2]
[354928754,1740828637071,-500.0,0.00032398,2]
[354928755,1740828637080,-638.98,0.00032398,2]
[354928756,1740828637089,-500.0,0.00032398,2]
[354928757,1740828637098,-500.0,0.00032398,2]
[354928758,1740828637108,-1384.22,0.00032398,2]
[354928759,1740828637118,-500.0,0.00032398,2]
[354928760,1740828637127,-500.0,0.00032398,2]
[354928761,1740828637137,-500.0,0.00032398,2]
[354928762,1740828637147,-500.0,0.00032398,2]
[354928763,1740828637157,-500.0,0.00032398,2]
[354928764,1740828637167,-500.0,0.00032398,2]
[354928765,1740828637176,-500.0,0.00032398,2]
[354928766,1740828637186,-500.0,0.00032398,2]
[354928767,1740828637199,-500.0,0.00032398,2]
[354928768,1740828637209,-500.0,0.00032398,2]
[354928769,1740828637218,-1251.13,0.00032398,2]
[354928770,1740828637228,-500.0,0.00032398,2]
[354928771,1740828637237,-530.06562148,0.00032398,2]
[354928772,1740828637247,-500.0,0.00032398,2]
[354928773,1740828637256,-500.0,0.00032398,2]
[354928774,1740828637265,-500.0,0.00032398,2]
[354928775,1740828637275,-500.0,0.00032398,2]
[354928776,1740828637284,-820.85,0.00032398,2]
[354928777,1740828637294,-507.11,0.00032398,2]
[354928778,1740828637304,-500.0,0.00032398,2]
[354928779,1740828637313,-12735.22,0.00032398,2]
[354928780,1740828637323,-500.0,0.00032398,2]
[354928781,1740828637332,-500.0,0.00032398,2]
[354928782,1740828637341,-2189.28,0.00032398,2]
[354928783,1740828637351,-595.46,0.00032398,2]
[354928784,1740828637360,-500.0,0.00032398,2]
[354928785,1740828637369,-500.0,0.00032398,2]
[354928786,1740828637378,-500.0,0.00032398,2]
[354928787,1740828637388,-500.0,0.00032398,2]
[354928788,1740828637397,-515.02210196,0.00032398,2]
[354928789,1740828637407,-694.69,0.00032398,2]
[354928790,1740828637419,-500.0,0.00032398,2]
[354928791,1740828637429,-3413.22,0.00032398,2]
[354928792,1740828637438,-500.0,0.00032398,2]
[354928793,1740828637448,-500.0,0.00032398,2]
[354928794,1740828637458,-522.12,0.00032398,2]
[354928795,1740828637468,-817.07,0.00032398,2]
[354928796,1740828637477,-681.69,0.00032398,2]
[354928797,1740828637487,-500.0,0.00032398,2]
[354928799,1740828637500,-500.0,0.00032398,2]
[354928800,1740828637509,-518.16798955,0.00032398,2]
[354928802,1740828637518,-500.0,0.00032398,2]
[354928805,1740828637528,-500.0,0.00032398,2]
[354928808,1740828637538,-819.23,0.00032398,2]
[354928810,1740828637547,-543.98,0.00032398,2]
[354928812,1740828637556,-500.0,0.00032398,2]
[354928813,1740828637565,-500.0,0.00032398,2]
[354928814,1740828637575,-500.0,0.00032398,2]
[354928816,1740828637584,-2250.89,0.00032398,2]
[354928817,1740828637593,-1919.64,0.00032398,2]
[354928818,1740828637603,-1258.68,0.00032398,2]
[354928819,1740828637613,-3268.62,0.00032398,2]
[354928820,1740828637623,-500.0,0.00032398,2]
[354928821,1740828637632,-1984.99,0.00032398,2]
[354928822,1740828637642,-500.0,0.00032398,2]
[354928823,1740828637652,-500.0,0.00032398,2]
[354928825,1740828637662,-2005.48,0.00032398,2]
[354928827,1740828637671,-1467.72,0.00032398,2]
[354928829,1740828637681,-500.0,0.00032398,2]
[354928831,1740828637691,-500.0,0.00032398,2]
[354928832,1740828637701,-190751.02,0.00032398,2]
[354928834,1740828637711,-414.92681263,0.00032398,2]
[354928835,1740828637720,-500.0,0.00032398,2]
[354928836,1740828637731,-1266.16,0.00032398,2]
[354928837,1740828637741,-500.0,0.00032398,2]
[354928838,1740828637750,-500.0,0.00032398,2]
[354928839,1740828637760,-677.16,0.00032398,2]
[354928840,1740828637770,-3618.9,0.00032398,2]
[354928841,1740828637780,-500.0,0.00032398,2]
[354928842,1740828637790,-1573.46,0.00032398,2]
[354928843,1740828637799,-500.0,0.00032398,2]
[354928844,1740828637809,-856.4,0.00032398,2]
[354928845,1740828637819,-1851.16,0.00032398,2]
[354928846,1740828637828,-614.63,0.00032398,2]
[354928847,1740828637838,-1810.25,0.00032398,2]
[354928848,1740828637847,-5280.75,0.00032398,2]
[354928849,1740828637857,-500.0,0.00032398,2]
[354928850,1740828637868,-500.0,0.00032398,2]
[354928851,1740828637877,-500.0,0.00032398,2]
[354928852,1740828637888,-11069.88,0.00032398,2]
[354928853,1740828637897,-712.53,0.00032398,2]
[354928854,1740828637907,-630.04,0.00032398,2]
[354928855,1740828637916,-278.00059302,0.00032398,2]
[354928856,1740828637926,-500.0,0.00032398,2]
[354928857,1740828637936,-500.0,0.00032398,2]
[354928858,1740828637947,-500.0,0.00032398,2]
[354928859,1740828637957,-2375.52,0.00032398,2]
[354928860,1740828637967,-1130.11,0.00032398,2]
[354928861,1740828637976,-500.0,0.00032398,2]
[354928862,1740828637986,-1087.88,0.00032398,2]
[354928863,1740828637996,-500.0,0.00032398,2]
[354928864,1740828638007,-653.59,0.00032398,2]
[354928865,1740828638017,-500.0,0.00032398,2]
[354928866,1740828638027,-2654.48,0.00032398,2]
[354928868,1740828638037,-1169.08,0.00032398,2]
[354928869,1740828638046,-500.0,0.00032398,2]
[354928871,1740828638055,-508.02,0.00032398,2]
[354928872,1740828638065,-786.55,0.00032398,2]
[354928873,1740828638074,-811.26,0.00032398,2]
[354928874,1740828638084,-500.0,0.00032398,2]
[354928875,1740828638093,-500.0,0.00032398,2]
[354928876,1740828638102,-1932.35,0.00032398,2]
[354928877,1740828638112,-1485.1,0.00032398,2]
[354928878,1740828638122,-792.91,0.00032398,2]
[354928879,1740828638131,-500.0,0.00032398,2]
[354928880,1740828638140,-500.0,0.00032398,2]
[354928881,1740828638150,-1449.49,0.00032398,2]
[354928882,1740828638160,-500.0,0.00032398,2]
[354928883,1740828638170,-1135.48,0.00032398,2]
[354928884,1740828638179,-500.0,0.00032398,2]
[354928885,1740828638189,-575.57,0.00032398,2]
[354928886,1740828638198,-1164.6,0.00032398,2]
[354928887,1740828638208,-33274.42,0.00032398,2]
[354928888,1740828638217,-500.0,0.00032398,2]
[354928889,1740828638226,-1252.98,0.00032398,2]
[354928890,1740828638236,-1536.28,0.00032398,2]
[354928891,1740828638245,-500.0,0.00032398,2]
[354928892,1740828638254,-500.0,0.00032398,2]
[354928893,1740828638264,-505.77254598,0.00032398,2]
[354928894,1740828638273,-500.0,0.00032398,2]
[354928895,1740828638282,-500.0,0.00032398,2]
[354928896,1740828638292,-1633.33,0.00032398,2]
[354928897,1740828638301,-500.0,0.00032398,2]
[354928898,1740828638311,-500.0,0.00032398,2]
[354928899,1740828638320,-2414.76,0.00032398,2]
[354928900,1740828638330,-500.0,0.00032398,2]
[354928901,1740828638340,-406.50660902,0.00032398,2]
[354928902,1740828638349,-546.01,0.00032398,2]
[354928903,1740828638359,-500.0,0.00032398,2]
[354928904,1740828638368,-500.0,0.00032398,2]
[354928905,1740828638378,-500.0,0.00032398,2]
[354928906,1740828638388,-500.0,0.00032398,2]
[354928907,1740828638397,-902.1,0.00032398,2]
[354928908,1740828638407,-561.47,0.00032398,2]
[354928909,1740828638420,-2073.08,0.00032398,2]
[354928910,1740828638430,-500.0,0.00032398,2]
[354928911,1740828638440,-1114.64,0.00032398,2]
[354928912,1740828638449,-500.0,0.00032398,2]
[354928913,1740828638460,-500.0,0.00032398,2]
[354928914,1740828638471,-408.72200913,0.00032398,2]
[354928915,1740828638481,-509.06,0.00032398,2]
[354928916,1740828638491,-522.8,0.00032398,2]
[354928917,1740828638502,-500.0,0.00032398,2]
[354928918,1740828638512,-871.6,0.00032398,2]
[354928919,1740828638522,-732.27,0.00032398,2]
[354928920,1740828638532,-500.0,0.00032398,2]
[354928921,1740828638541,-500.0,0.00032398,2]
[354928922,1740828638551,-500.0,0.00032398,2]
[354928923,1740828638561,-500.0,0.00032398,2]
[354928924,1740828638570,-222000.0,0.00032399,2]
[354928925,1740828638580,-241.244594,0.00032399,7]
[354928926,1740828638590,-241.244594,0.00032399,7]
[354928927,1740828638599,-151.0,0.00032399,7]
[354928928,1740828638610,-253.551633,0.00032399,7]
[354928929,1740828638619,-253.551633,0.00032399,7]
[354928930,1740828638629,-292.08,0.000324,7]
[354928931,1740828638639,-2000.0,0.000324,2]
[354928932,1740828638648,-500.0,0.00032473,5]
[354928933,1740828638657,-500.0,0.00032473,5]
[354928934,1740828638667,-500.0,0.00032473,5]
[354928935,1740828638676,-500.0,0.00032473,5]
[354928936,1740828638686,-3000.0,0.00032475,2]
[354928937,1740828638696,-800.0,0.00032479,2]
[354928938,1740828638705,-880.0,0.00032479,2]
[354928939,1740828638714,-968.0,0.00032479,2]
[354928940,1740828638724,-1064.8,0.00032479,2]
[354928941,1740828638733,-1171.28,0.00032479,2]
[354928942,1740828638742,-1288.408,0.00032479,2]
[354928943,1740828638752,-1600.0,0.00032479,2]
[354928944,1740828638762,-511.45,0.00032498,2]